bitfinex/quotes_ETHUSD_20251224
["timestamp","ask_amount","ask_price","bid_price","bid_amount"]
[1766601761818,3.3548,2943.9,2943.2,3.29007662]
[1766601762410,3.3548,2943.9,2943.3,3.2561]
[1766601762615,3.3548,2943.9,2943.4,0.03397431]
[1766601763954,0.002,2943.9,2943.4,3.29007431]
[1766601764160,0.002,2943.9,2943.4,3.95883554]
[1766601766242,0.002,2943.9,2943.4,3.29007431]
[1766601767150,3.3548,2943.9,2943.4,3.29007431]
[1766601768546,3.3548,2943.9,2943.4,0.03397431]
[1766601768744,3.3548,2943.9,2943.3,0.03397546]
[1766601770830,3.3548,2943.9,2943.4,0.03397431]
[1766601771129,3.3548,2943.9,2943.2,0.03397662]
[1766601771329,3.3548,2943.9,2943.2,4.06213336]
[1766601773158,3.3548,2943.9,2943.2,7.45979216]
[1766601773359,3.3548,2943.9,2943.2,7.42581554]
[1766601773729,3.3548,2943.9,2943.2,4.02815674]
[1766601773941,3.3548,2943.9,2943.2,7.45978382]
[1766601774257,3.3548,2943.9,2943.2,7.4258072]
[1766601774556,3.3548,2943.9,2943.3,0.03397546]
[1766601782432,0.002,2943.9,2943.4,3.0783]
[1766601783337,0.002,2943.9,2943.5,0.03397316]
[1766601783579,0.002,2943.9,2943.6,3.0783]
[1766601783963,0.002,2943.9,2943.3,3.11227546]
[1766601784141,3.3706,2943.9,2943.3,0.03397546]
[1766601784341,3.3706,2943.9,2943.3,3.11227546]
[1766601784742,3.3706,2943.9,2943.3,0.03397546]
[1766601785369,3.3706,2943.9,2943.4,3.0783]
[1766601785568,3.3706,2943.9,2943.5,0.03397316]
[1766601786065,3.3706,2943.9,2943.2,3.0783]
[1766601786236,3.3706,2943.9,2943.3,3.39750546]
[1766601786435,3.3706,2943.9,2943.4,3.11227431]
[1766601786640,0.002,2943.9,2943.4,3.43136139]
[1766601786868,0.002,2943.9,2943.4,0.03397431]
[1766601787272,0.002,2943.9,2943.4,3.43139939]
[1766601787585,0.002,2943.9,2943.4,0.03397431]
[1766601788580,0.002,2943.9,2943.5,3.0783]
[1766601788870,0.002,2943.9,2943.6,0.033972]
[1766601800579,0.002,2943.9,2943.6,6.50946783]
[1766601802273,0.002,2943.9,2943.6,3.112272]
[1766601804585,0.002,2943.9,2943.5,0.889]
[1766601805994,3.3686,2943.8,2943.3,0.001]
[1766601806194,0.34246024,2943.9,2943.3,0.001]
[1766601806195,3.3686,2943.6,2943.3,0.001]
[1766601806405,0.03400244,2943.5,2943.3,0.001]
[1766601806765,3.3686,2943.6,2943.3,0.001]
[1766601808075,0.002,2943.9,2943.4,3.0783]
[1766601808303,0.002,2943.9,2943.6,3.0783]
[1766601808602,0.002,2943.9,2943.7,0.03397085]
[1766601808808,0.002,2943.9,2943.5,0.889]
[1766601809374,3.3686,2943.8,2943.5,0.889]
[1766601809597,0.002,2943.9,2943.5,0.889]
[1766601809997,0.03600244,2943.9,2943.5,0.889]
[1766601810402,3.3686,2943.8,2943.3,3.0793]
[1766601810610,3.3686,2943.8,2943.3,0.001]
[1766601811105,0.03400244,2943.7,2943.3,0.001]
[1766601814711,3.24870244,2943.7,2943.3,0.001]
[1766601818717,0.002,2943.9,2943.4,2.9144]
[1766601819687,2.9436,2943.8,2943.3,0.03497546]
[1766601820088,2.9436,2943.8,2943.3,6.34691637]
[1766601820581,2.9436,2943.8,2943.3,0.03497546]
[1766601825390,2.9436,2943.8,2943.3,3.432522]
[1766601825618,2.9436,2943.8,2943.3,0.03497546]
[1766601827220,2.9436,2943.8,2943.3,3.43251416]
[1766601827393,2.9436,2943.8,2943.3,6.34691416]
[1766601830234,2.9456,2943.8,2943.3,6.34691416]
[1766601830732,3.24036,2943.8,2943.1,0.89]
[1766601830895,2.9436,2943.6,2943.1,0.001]
[1766601831096,2.9436,2943.4,2943.1,0.001]
[1766601836195,2.9775779,2943.7,2943.1,0.001]
[1766601836394,0.32743379,2943.6,2943.1,2.9154]
[1766601838645,0.32743379,2943.6,2943.2,2.94837662]
[1766601838817,0.002,2943.8,2943.4,2.9144]
[1766601839124,0.002,2943.8,2943.4,2.94837431]
[1766601839337,0.0359779,2943.8,2943.4,2.94837431]
[1766601839514,0.0359779,2943.8,2943.4,0.03397431]
[1766601839700,2.9795779,2943.8,2943.4,0.03397431]
[1766601840813,2.9795779,2943.8,2943.3,0.92297546]
[1766601841600,2.9795779,2943.8,2943.3,4.32051086]
[1766601842005,0.002,2943.8,2943.4,2.9145]
[1766601842327,0.002,2943.9,2943.4,2.9145]
[1766601842929,3.122,2943.8,2943.3,1.95236654]
[1766601843130,3.122,2943.8,2943.3,4.900842]
[1766601844027,3.122,2943.8,2943.3,8.29838725]
[1766601844332,0.002,2943.9,2943.4,3.74433872]
[1766601844638,0.002,2943.9,2943.5,0.03397316]
[1766601845013,0.002,2943.9,2943.5,2.94847316]
[1766601845219,3.124,2944.3,2943.6,2.9145]
[1766601845426,3.124,2944.3,2943.7,6.3454484]
[1766601846103,0.002,2943.9,2943.7,6.3454484]
[1766601846632,0.002,2943.9,2943.7,2.94847085]
[1766601848233,0.0339779,2944.2,2943.8,2.9145]
[1766601848938,3.1559779,2944.2,2943.7,1.68390162]
[1766601849312,3.1559779,2944.2,2943.7,0.889]
[1766601849725,0.002,2944.3,2943.8,2.94846969]
[1766601850241,3.124,2944.3,2943.8,2.94846969]
[1766601850636,0.0339779,2944.2,2943.8,0.03396969]
[1766601850841,3.1559779,2944.2,2943.8,0.03396969]
[1766601851424,3.1559779,2944.2,2943.7,0.889]
[1766601851844,3.1559779,2944.2,2943.6,2.9145]
[1766601852012,3.1559779,2944.2,2943.6,7.20069309]
[1766601852817,3.1559779,2944.2,2943.7,0.03397085]
[1766601853443,3.1579779,2944.2,2943.7,0.03397085]
[1766601856225,3.1579779,2944.2,2943.7,3.43104688]
[1766601856744,3.1579779,2944.2,2943.7,0.03397085]
[1766601858075,3.1579779,2944.2,2943.7,3.43104623]
[1766601859977,3.1579779,2944.2,2943.7,0.03397085]
[1766601860169,3.47397569,2944.2,2943.7,0.03397085]
[1766601860873,3.1579779,2944.2,2943.7,0.03397085]
[1766601861086,3.1579779,2944.2,2943.7,3.43103562]
[1766601863899,3.124,2944.2,2943.7,3.43103562]
[1766601865388,3.124,2944.2,2943.7,0.03397085]
[1766601865557,3.124,2944.2,2943.6,4.28613813]
[1766601865958,0.002,2944.2,2943.7,2.94847085]
[1766601866268,0.002,2944.2,2943.8,2.9145]
[1766601866468,0.002,2944.2,2943.9,0.03396854]
[1766601868405,0.002,2944.2,2943.9,6.34525085]
[1766601868558,0.002,2944.3,2943.9,9.74210536]
[1766601868890,0.0359779,2944.6,2944.0,0.889]
[1766601869097,0.002,2944.6,2944.2,2.9145]
[1766601869781,0.002,2944.6,2944.3,0.03396393]
[1766601869982,0.002,2944.6,2944.3,2.9145]
[1766601870370,0.002,2944.6,2944.3,3.39633837]
[1766601870695,0.002,2944.9,2944.5,2.9145]
[1766601871067,3.124,2944.9,2944.4,0.33963384]
[1766601871677,2.9796,2944.7,2944.3,0.889]
[1766601871879,3.0135779,2944.6,2944.2,0.889]
[1766601872080,2.9796,2944.6,2944.3,3.43033912]
[1766601872762,0.0359779,2944.9,2944.4,2.9791]
[1766601872956,0.002,2944.9,2944.5,3.01306162]
[1766601873159,0.002,2944.9,2944.5,2.9791]
[1766601873366,2.9816,2944.9,2944.3,0.889]
[1766601873569,2.9796,2944.7,2944.3,0.889]
[1766601873773,3.0135779,2944.6,2944.3,0.889]
[1766601873960,3.0135779,2944.6,2944.2,3.43043201]
[1766601874169,3.0135779,2944.6,2944.2,4.4999555]
[1766601874575,0.0339779,2944.6,2944.2,4.4999555]
[1766601874775,0.0339779,2944.7,2944.2,4.4999555]
[1766601876295,2.9796,2944.6,2944.2,3.43043201]
[1766601876765,3.0155779,2944.9,2944.3,2.9791]
[1766601878265,0.002,2944.7,2944.3,2.9791]
[1766601878466,0.002,2944.7,2944.4,0.03396277]
[1766601878865,0.002,2944.7,2944.4,2.77266277]
[1766601880285,0.002,2944.7,2944.4,2.7387]
[1766601880669,0.002,2944.7,2944.3,0.03396393]
[1766601880865,0.002,2944.7,2944.3,3.43034682]
[1766601881071,0.002,2944.7,2944.4,2.7387]
[1766601881569,0.002,2944.7,2944.5,0.03396162]
[1766601881770,0.002,2944.7,2944.5,2.77266162]
[1766601881971,0.002,2944.9,2944.5,2.77266162]
[1766601883499,0.002,2944.9,2944.5,6.16881883]
[1766601884175,0.002,2944.9,2944.5,2.77266162]
[1766601884503,2.8668,2944.9,2944.5,0.03396162]
[1766601884700,2.8648,2944.7,2944.2,3.39645005]
[1766601884885,2.8648,2944.7,2944.3,0.01696682]
[1766601885080,2.8648,2944.7,2944.3,3.4133144]
[1766601885781,2.90924626,2944.9,2944.3,6.1520144]
[1766601885981,2.90924626,2944.9,2944.3,3.4133144]
[1766601886300,2.90924626,2944.9,2944.4,2.7387]
[1766601891904,3.20057089,2944.9,2944.3,0.01696682]
[1766601892219,3.20057089,2944.9,2944.3,2.75566682]
[1766601892903,3.20057089,2944.9,2944.3,6.15204086]
[1766601893203,3.20057089,2944.9,2944.3,3.41334086]
[1766601895581,0.04444626,2944.9,2944.4,2.7387]
[1766601896192,0.002,2945.0,2944.4,0.01696164]
[1766601896392,0.002,2945.0,2944.5,2.7387]
[1766601896709,0.04444482,2945.0,2944.6,2.75565818]
[1766601896911,0.002,2945.0,2944.6,2.75565818]
[1766601897910,0.002,2945.0,2944.6,2.7387]
[1766601898413,0.002,2945.0,2944.4,2.7387]
[1766601898618,0.04444482,2945.0,2944.4,2.7387]
[1766601899927,3.2003693,2945.0,2944.4,2.75566049]
[1766601900616,3.2003693,2945.0,2943.6,0.001]
[1766601900617,2.8648,2944.8,2943.6,0.001]
[1766601900794,2.8648,2944.5,2943.6,0.001]
[1766601900991,2.8648,2944.5,2943.2,0.889]
[1766601900992,2.8648,2944.2,2943.2,0.889]
[1766601901183,2.8648,2944.0,2943.2,0.889]
[1766601901387,2.811,2943.8,2943.2,0.889]
[1766601901587,2.811,2943.6,2943.1,0.001]
[1766601901795,0.04246645,2943.5,2943.1,0.001]
[1766601902825,2.811,2943.6,2943.1,0.001]
[1766601903009,2.811,2944.3,2943.2,2.9699]
[1766601903319,2.811,2944.1,2943.3,2.9709]
[1766601903515,2.811,2944.1,2943.3,0.001]
[1766601904293,2.811,2944.1,2943.3,2.9709]
[1766601906516,2.811,2944.1,2943.3,6.36842593]
[1766601906719,2.811,2944.1,2943.4,2.9699]
[1766601906891,0.70975388,2944.0,2943.4,2.9699]
[1766601907320,0.89,2944.2,2943.4,2.9699]
[1766601907520,0.04245347,2944.4,2943.4,2.9699]
[1766601907833,2.85345491,2944.3,2943.4,2.9699]
[1766601908643,2.811,2944.2,2943.4,2.9699]
[1766601908841,2.85345635,2944.2,2943.3,0.001]
[1766601909147,2.811,2944.0,2943.3,2.9709]
[1766601909294,0.04246068,2943.9,2943.3,2.9709]
[1766601909918,0.04246068,2943.9,2943.4,3.39741024]
[1766601910233,0.04246068,2943.9,2943.5,2.9699]
[1766601910400,2.85346212,2943.8,2943.3,0.001]
[1766601910810,0.04246212,2943.8,2943.3,2.9709]
[1766601911097,2.811,2943.9,2943.3,0.001]
[1766601911301,2.811,2943.7,2943.3,0.001]
[1766601911613,2.853465,2943.6,2943.3,0.001]
[1766601911813,2.853465,2943.6,2943.1,0.001]
[1766601912937,2.811,2943.6,2943.1,0.001]
[1766601913498,2.811,2943.6,2943.1,2.9709]
[1766601914514,0.04246645,2943.5,2943.1,2.9709]
[1766601915038,0.891,2943.8,2943.2,3.00387662]
[1766601915211,0.04243356,2943.7,2943.2,3.00387662]
[1766601916027,2.811,2944.1,2943.3,2.9699]
[1766601916211,2.811,2944.5,2943.5,2.9699]
[1766601916396,2.85343356,2944.4,2943.7,2.9699]
[1766601923238,2.85343356,2944.4,2943.8,3.00386969]
[1766601923422,0.04243356,2944.3,2943.8,3.00386969]
[1766601923628,2.85343356,2944.3,2943.8,3.00386969]
[1766601930231,2.85343356,2944.3,2943.8,6.40081356]
[1766601931367,0.04243356,2944.3,2943.8,6.24491356]
[1766601931570,0.04443356,2944.4,2943.8,6.24491356]
[1766601931881,0.04443356,2944.4,2943.9,2.814]
[1766601932034,0.002,2944.4,2943.9,2.814]
[1766601932237,0.002,2944.3,2943.9,3.77819948]
[1766601932444,2.7005,2944.9,2944.0,2.84796739]
[1766601932646,0.002,2944.9,2944.1,2.814]
[1766601932853,0.002,2944.9,2944.3,2.814]
[1766601933053,0.002,2944.9,2944.3,3.0954]
[1766601933575,0.002,2944.9,2944.4,2.84796277]
[1766601934368,0.002,2944.9,2944.4,0.03396277]
[1766601934369,2.7005,2944.9,2944.4,0.03396277]
[1766601934667,2.7005,2944.9,2944.0,0.92296739]
[1766601934848,2.6985,2944.8,2944.0,0.03396739]
[1766601935050,2.6985,2944.6,2944.0,0.03396739]
[1766601937565,2.6985,2944.6,2943.8,2.814]
[1766601937971,2.6985,2944.6,2943.4,2.6282]
[1766601938274,2.6985,2944.6,2943.7,3.39704924]
[1766601939376,2.6804,2944.5,2943.8,0.03396969]
[1766601939570,2.6804,2944.3,2943.8,0.03396969]
[1766601940472,2.6804,2944.3,2943.6,2.6282]
[1766601940647,2.6804,2944.3,2943.6,3.5172]
[1766601942679,2.6804,2944.3,2943.6,6.9483711]
[1766601942978,2.6804,2944.3,2943.6,6.9143991]
[1766601943154,3.064364,2944.3,2943.6,6.9143991]
[1766601945271,3.064364,2944.3,2943.7,2.6282]
[1766601946071,3.064364,2944.3,2943.7,2.66217085]
[1766601947553,3.064364,2944.3,2943.7,6.05925127]
[1766601952286,2.6804,2944.3,2943.7,6.05925127]
[1766601952663,2.6804,2944.3,2943.7,2.6282]
[1766601952870,2.6804,2944.3,2943.7,6.02527333]
[1766601953074,2.6804,2944.3,2943.8,2.6282]
[1766601953590,0.002,2944.4,2943.9,2.66216854]
[1766601955365,0.002,2944.4,2943.9,6.05896892]
[1766601955694,0.002,2944.4,2944.0,2.6282]
[1766601956460,0.002,2944.4,2943.9,0.97957277]
[1766601956461,0.002,2944.4,2943.9,0.03396854]
[1766601956661,2.6824,2944.4,2943.8,3.43092073]
[1766601958894,2.6824,2944.4,2943.8,6.05912073]
[1766601960093,2.6824,2944.4,2943.8,2.66216969]
[1766601961889,2.67559537,2944.4,2943.8,2.66216969]
[1766601963408,2.67559537,2944.4,2943.8,6.05912387]
[1766601963592,0.002,2944.6,2943.9,2.6718]
[1766601963783,0.002,2944.6,2944.1,2.6718]
[1766601963971,2.5645,2944.6,2944.1,2.6718]
[1766601964608,0.002,2944.4,2944.1,2.6718]
[1766601966373,0.002,2944.6,2944.2,2.6718]
[1766601966705,0.002,2944.9,2944.5,2.6718]
[1766601966887,0.002,2944.9,2944.5,2.70576162]
[1766601967774,0.002,2944.9,2944.6,2.6718]
[1766601968696,0.002,2944.9,2944.7,0.03395931]
[1766601969015,0.002,2944.9,2944.6,2.70576047]
[1766601969503,0.002,2944.9,2944.6,2.6718]
[1766601970878,0.002,2944.9,2944.4,3.5608]
[1766601971079,2.5625,2944.8,2944.4,1.5293763]
[1766601971403,2.5625,2944.8,2944.4,0.889]
[1766601972108,2.5625,2944.7,2944.0,0.001]
[1766601972281,2.5625,2944.6,2944.0,0.001]
[1766601972476,2.5625,2944.4,2943.7,0.03397085]
[1766601972903,2.5625,2944.4,2943.7,6.10283768]
[1766601973103,2.5625,2944.4,2943.8,2.6718]
[1766601974811,2.5625,2944.3,2943.7,0.03397085]
[1766601974986,2.5625,2944.3,2943.6,0.001]
[1766601975187,2.5625,2944.1,2943.6,0.001]
[1766601978341,3.74143568,2944.5,2943.3,0.001]
[1766601978342,2.5625,2944.0,2943.3,0.001]
[1766601978489,2.5625,2944.0,2943.3,3.43248975]
[1766601979111,2.5625,2944.0,2943.5,0.001]
[1766601979430,2.90775,2944.0,2943.5,0.001]
[1766601980219,2.5625,2943.8,2943.1,0.001]
[1766601980519,2.5625,2943.6,2942.6,0.03398355]
[1766601980721,2.5625,2943.6,2942.7,6.06997136]
[1766601981026,0.34525,2944.0,2943.1,4.81578322]
[1766601981027,3.74202319,2944.0,2943.1,4.81578322]
[1766601981191,0.891,2943.9,2943.2,2.6718]
[1766601981384,3.4535,2943.9,2943.2,2.6718]
[1766601981579,2.5625,2943.8,2943.2,2.6718]
[1766601982984,3.39697826,2943.8,2942.8,10.88565093]
[1766601983240,2.99129783,2943.7,2942.8,3.5608]
[1766601985112,2.99129783,2943.7,2942.8,6.95890144]
[1766601985321,2.5625,2943.6,2942.8,6.06991369]
[1766601985500,2.5625,2943.6,2942.8,6.10389493]
[1766601985688,2.86162978,2943.6,2942.8,6.10389493]
[1766601986115,2.86162978,2943.6,2942.8,3.43209493]
[1766601986312,2.86162978,2943.6,2942.9,2.6718]
[1766601986515,2.86162978,2943.6,2942.8,3.43209493]
[1766601986817,2.86162978,2943.6,2942.8,0.03398124]
[1766601987123,2.5625,2943.4,2942.8,0.03398124]
[1766601987629,2.5625,2943.3,2942.5,2.7067847]
[1766601987811,2.5625,2943.3,2942.8,0.001]
[1766601989291,2.5625,2943.3,2942.6,0.03398355]
[1766601989911,2.5625,2943.3,2942.5,2.6728]
[1766601990113,2.5625,2943.4,2942.5,2.6728]
[1766601990393,2.5625,2943.2,2942.5,2.6728]
[1766601990594,2.5625,2943.2,2942.5,0.001]
[1766601993132,2.6357,2943.8,2942.9,4.81578322]
[1766601993331,3.5267,2943.6,2943.0,2.715]
[1766601993532,3.87937,2943.6,2943.0,2.715]
[1766601993691,3.87937,2943.6,2943.0,2.665]
[1766601994199,1.24367,2943.6,2943.1,2.715]
[1766601995520,3.5267,2943.6,2943.1,2.715]
[1766601995728,3.5267,2943.6,2942.9,3.43192003]
[1766601995933,3.5267,2943.6,2942.9,6.14692003]
[1766601996136,2.6357,2943.5,2942.9,6.14692003]
[1766601996509,2.6357,2943.5,2942.9,6.14792003]
[1766601997828,0.891,2943.6,2943.0,2.5042]
[1766601998030,2.6702,2943.8,2943.2,2.5042]
[1766601998245,0.891,2943.9,2943.3,2.53817546]
[1766601998612,2.6722,2944.0,2943.3,2.53817546]
[1766601998834,2.6722,2944.0,2943.3,3.95310397]
[1766602002144,2.6722,2944.0,2943.3,2.5042]
[1766602003772,2.6702,2943.9,2943.2,3.39759242]
[1766602003916,2.6702,2943.9,2943.2,5.90179242]
[1766602005145,2.6702,2943.9,2943.3,0.03397546]
[1766602005514,2.6702,2943.9,2943.2,5.90179242]
[1766602006216,2.6702,2943.9,2943.3,2.53817546]
[1766602010356,2.6702,2943.9,2943.3,5.93572062]
[1766602010555,2.6702,2943.9,2943.3,2.53817546]
[1766602012163,2.6722,2943.9,2943.3,2.53817546]
[1766602012935,2.6722,2943.9,2943.3,0.03397546]
[1766602013141,3.27928292,2943.9,2943.1,5.90192817]
[1766602013669,3.27928292,2943.9,2943.2,3.39766088]
[1766602014072,3.27928292,2943.9,2943.1,5.90191237]
[1766602014980,3.27928292,2943.9,2943.2,3.39765576]
[1766602017589,3.27928292,2943.9,2943.2,2.5042]
[1766602017774,2.6722,2943.9,2943.2,2.5042]
[1766602019478,2.6722,2943.9,2943.2,5.90182375]
[1766602022201,2.6722,2943.9,2943.3,2.6941]
[1766602022357,2.6722,2943.9,2943.3,2.72807546]
[1766602022557,3.2792831,2943.9,2943.3,2.72807546]
[1766602025360,3.2792831,2943.9,2943.3,2.6941]
[1766602025689,3.2792831,2943.9,2943.2,0.03397662]
[1766602026787,3.2792831,2943.9,2943.1,6.12579185]
[1766602029494,3.2792831,2943.9,2943.1,3.43169185]
[1766602029664,0.32812831,2943.8,2943.2,6.09165946]
[1766602029865,2.6722,2943.9,2943.3,2.72807546]
[1766602032092,2.6722,2943.9,2943.3,6.12561823]
[1766602032778,2.6722,2943.9,2943.3,2.72807546]
[1766602033293,2.6722,2943.9,2943.3,2.6941]
[1766602034271,2.6722,2943.9,2943.1,3.39772403]
[1766602034471,2.5197,2943.7,2943.1,6.09182403]
[1766602035266,2.5197,2943.7,2943.1,2.6941]
[1766602035473,2.5197,2943.7,2943.1,6.09186682]
[1766602035809,2.5197,2943.7,2943.1,2.6941]
[1766602036011,2.5197,2943.7,2943.1,6.09186574]
[1766602036508,0.002,2943.9,2943.2,2.6941]
[1766602036714,6.46,2944.5,2943.2,2.6941]
[1766602036715,6.46,2944.5,2943.6,4.8175358]
[1766602036881,6.46,2944.5,2943.7,0.92297085]
[1766602037071,4.46619672,2944.9,2943.7,0.92297085]
[1766602037072,0.002,2944.9,2944.1,2.6941]
[1766602037270,0.002,2944.9,2943.7,0.92297085]
[1766602037271,0.002,2945.1,2944.5,2.6941]
[1766602037471,0.002,2945.1,2944.7,2.6941]
[1766602041711,0.002,2945.2,2944.6,2.6941]
[1766602041879,0.002,2945.2,2944.8,2.6941]
[1766602043212,0.002,2945.5,2945.0,2.6941]
[1766602044017,0.002,2945.1,2945.0,2.6941]
[1766602045179,0.002,2945.1,2944.7,2.6941]
[1766602047111,2.5217,2945.4,2944.8,2.72805816]
[1766602047703,2.5217,2945.4,2944.8,2.6941]
[1766602049582,0.002,2945.4,2944.8,2.6941]
[1766602052296,2.446,2945.4,2944.8,2.6941]
[1766602053301,2.444,2945.3,2944.4,2.4704]
[1766602053621,2.444,2945.1,2944.4,2.4704]
[1766602053913,2.444,2945.1,2944.4,5.86667719]
[1766602054518,2.444,2945.1,2944.5,2.4704]
[1766602058498,2.444,2945.1,2944.5,2.4714]
[1766602059004,2.446,2945.1,2944.5,2.4714]
[1766602059318,3.12249203,2945.1,2944.5,2.4714]
[1766602060708,2.6358,2945.0,2944.5,2.4714]
[1766602060893,0.67849203,2945.1,2944.5,3.39713294]
[1766602061218,0.002,2945.1,2944.6,2.6736]
[1766602065226,2.6378,2945.1,2944.6,2.6736]
[1766602066024,2.6378,2945.1,2944.5,0.001]
[1766602071723,2.6378,2945.1,2944.6,2.6736]
[1766602075032,2.6378,2945.1,2944.5,0.001]
[1766602075236,0.26378,2945.0,2944.5,2.6746]
[1766602075541,2.6358,2945.0,2944.5,2.6746]
[1766602079622,2.6358,2945.0,2944.5,0.001]
[1766602081141,2.6358,2944.7,2943.5,2.6736]
[1766602081362,2.6358,2944.7,2943.8,5.98758959]
[1766602081546,2.4319,2944.5,2943.9,0.03396854]
[1766602081730,0.74502228,2944.6,2943.9,2.62466854]
[1766602081931,2.4319,2944.7,2943.9,2.62466854]
[1766602083436,2.4319,2944.7,2943.9,3.43072829]
[1766602083614,2.4319,2944.7,2944.0,2.5907]
[1766602085728,2.4319,2944.7,2944.0,3.39672912]
[1766602085927,2.4319,2944.7,2944.1,2.5907]
[1766602087020,3.1036619,2944.7,2944.1,2.5907]
[1766602088317,0.002,2945.1,2944.2,2.62466508]
[1766602088517,0.002,2945.1,2944.2,2.5907]
[1766602088518,2.4319,2945.0,2944.2,2.5907]
[1766602089742,2.4319,2944.8,2944.2,2.5907]
[1766602090040,2.4319,2944.8,2944.1,0.03396623]
[1766602090243,7.2463228,2944.6,2943.9,2.5907]
[1766602090446,2.4319,2944.5,2943.9,5.98753345]
[1766602091032,2.4319,2944.5,2944.1,3.39661439]
[1766602091234,3.3219,2944.7,2944.1,2.5907]
[1766602091550,2.4319,2944.7,2944.1,2.5907]
[1766602091754,3.3219,2944.7,2944.1,2.5907]
[1766602092129,2.4319,2944.9,2944.2,2.5907]
[1766602092335,0.89,2945.0,2944.4,2.5907]
[1766602092736,0.892,2945.1,2944.6,2.5907]
[1766602093558,0.002,2945.1,2944.6,2.5907]
[1766602093763,0.002,2945.1,2944.6,2.84977]
[1766602094224,0.002,2945.1,2944.7,2.5907]
[1766602094567,0.002,2945.4,2944.8,2.5907]
[1766602095266,2.4339,2945.4,2944.8,2.5907]
[1766602095674,5.8290475,2945.4,2944.8,2.5907]
[1766602095880,3.10400475,2945.3,2944.8,2.5907]
[1766602099469,2.4319,2945.2,2944.6,0.03396047]
[1766602099668,2.4319,2945.2,2944.6,2.62466047]
[1766602100260,2.4319,2945.2,2944.6,6.02069103]
[1766602100666,2.4319,2945.2,2944.7,2.5907]
[1766602102083,2.4339,2945.2,2944.7,2.5907]
[1766602103890,0.002,2945.4,2944.9,2.5907]
[1766602104976,0.002,2945.4,2945.0,0.03395585]
[1766602105136,0.002,2945.4,2945.0,2.5907]
[1766602108090,0.002,2945.4,2944.8,2.5907]
[1766602110190,2.4339,2945.4,2944.8,2.5907]
[1766602110487,3.10618455,2945.4,2944.8,2.5907]
[1766602111683,2.2565,2945.3,2944.6,2.29096047]
[1766602112789,2.2565,2945.3,2944.6,5.68697923]
[1766602112991,2.2565,2945.3,2944.6,2.29096047]
[1766602113175,2.2565,2945.1,2944.5,0.03396162]
[1766602113578,2.57115,2945.1,2944.2,3.39646375]
[1766602113900,2.57115,2945.1,2944.3,0.03396393]
[1766602114760,5.96663484,2945.1,2944.3,2.29096393]
[1766602115089,2.2565,2945.0,2944.3,3.43032719]
[1766602116098,2.2565,2945.0,2944.3,0.03396393]
[1766602116406,2.2565,2944.9,2944.3,3.3963707]
[1766602116593,2.2565,2944.9,2944.2,5.6873931]
[1766602116896,2.2565,2944.9,2944.3,3.39637864]
[1766602117491,2.2565,2944.9,2944.2,5.68741016]
[1766602117670,2.2565,2944.9,2944.2,5.68743899]
[1766602117992,2.2565,2944.9,2944.2,3.43043899]
[1766602118192,1.19482186,2944.9,2944.2,3.43043899]
[1766602118496,2.3749,2944.8,2944.2,3.43043899]
[1766602118920,2.3749,2944.8,2944.2,5.82943899]
[1766602119691,2.3749,2944.8,2944.3,0.001]
[1766602122109,0.89,2944.7,2944.1,0.001]
[1766602122274,0.89,2944.7,2944.0,0.001]
[1766602122275,2.3749,2944.4,2944.0,0.001]
[1766602122477,2.3749,2944.4,2943.8,0.001]
[1766602123711,2.3749,2944.3,2943.8,0.001]
[1766602125002,3.2649,2944.3,2943.8,0.001]
[1766602125197,1.69793228,2944.3,2943.8,0.001]
[1766602125505,3.77486456,2945.1,2944.0,2.1617]
[1766602125506,0.31465,2945.1,2944.0,2.1617]
[1766602125679,0.31465,2945.1,2944.2,2.1617]
[1766602125879,0.31465,2945.1,2944.4,2.148]
[1766602127512,2.68955,2945.1,2944.4,2.148]
[1766602135916,2.3749,2944.9,2944.3,0.03496393]
[1766602136719,2.3749,2944.9,2944.3,0.001]
[1766602140312,2.3749,2944.8,2944.2,0.889]
[1766602141002,2.3749,2944.7,2944.2,0.889]
[1766602141498,2.3749,2944.7,2944.2,2.8394]
[1766602141926,5.5296308,2945.0,2944.2,1.51599874]
[1766602142132,3.3956308,2945.0,2944.3,1.9392]
[1766602142301,2.134,2944.9,2944.3,1.9392]
[1766602142729,0.31665,2945.1,2944.5,1.9392]
[1766602142933,2.45065,2945.1,2944.5,1.9392]
[1766602143835,5.84612368,2945.1,2944.5,1.9392]
[1766602144033,2.134,2945.0,2944.5,1.9392]
[1766602148367,2.71881368,2945.0,2944.5,1.9392]
[1766602151754,0.31665,2945.1,2944.6,1.8437]
[1766602152849,2.45065,2945.1,2944.6,1.8437]
[1766602153463,0.002,2945.0,2944.6,1.8437]
[1766602154757,0.002,2945.0,2944.3,3.43130891]
[1766602154926,2.136,2945.0,2944.3,1.83936393]
[1766602155125,2.72101227,2945.0,2944.3,1.83936393]
[1766602155860,2.134,2944.9,2944.3,1.8054]
[1766602156536,2.134,2944.9,2944.3,1.83936393]
[1766602158660,2.134,2944.9,2944.4,1.7761]
[1766602165070,2.134,2944.9,2944.3,0.001]
[1766602165258,2.134,2944.9,2944.3,0.03496393]
[1766602165764,2.134,2944.9,2944.3,1.73566393]
[1766602166270,2.134,2944.9,2944.3,5.13204437]
[1766602166971,2.134,2944.9,2944.3,1.73566393]
[1766602169875,2.77731981,2944.9,2944.3,1.73566393]
[1766602171278,0.64331981,2944.9,2944.3,1.73566393]
[1766602171490,2.0103,2944.8,2944.3,1.73566393]
[1766602175375,2.0103,2944.8,2944.3,1.7017]
[1766602176504,2.0103,2944.8,2944.3,1.73566393]
[1766602179603,2.0123,2944.8,2944.3,5.13205321]